bitfinex-derivatives/quotes_SOLF0:USTF0_20260202
["timestamp","ask_amount","ask_price","bid_price","bid_amount"]
[1770027414726,47.07407656,103.18,103.13,8.7356]
[1770027415030,3.01029054,103.16,103.1,48.94674644]
[1770027415521,3.01029054,103.16,103.1,57.68454644]
[1770027415721,50.0843671,103.16,103.1,48.94674644]
[1770027417424,58.8178671,103.16,103.1,48.94674644]
[1770027417626,3.01029054,103.15,103.1,48.94674644]
[1770027419731,50.0843671,103.15,103.1,48.94674644]
[1770027420433,47.07407656,103.15,103.1,57.68524644]
[1770027420629,11.74379054,103.16,103.1,57.68524644]
[1770027422234,58.8178671,103.16,103.1,57.68524644]
[1770027423234,50.0843671,103.14,103.08,57.68654644]
[1770027423434,3.01029054,103.13,103.08,48.94674644]
[1770027424124,3.01029054,103.13,103.08,57.68724644]
[1770027424329,58.8204671,103.14,103.08,57.68724644]
[1770027424533,50.0843671,103.13,103.08,48.94674644]
[1770027424836,3.01029054,103.11,103.06,435.80674644]
[1770027425135,3.01029054,103.12,103.07,48.94674644]
[1770027426135,50.0843671,103.13,103.07,48.94674644]
[1770027426335,58.8206671,103.13,103.07,48.94674644]
[1770027426536,50.0843671,103.13,103.07,48.94674644]
[1770027426732,3.01029054,103.12,103.07,48.94674644]
[1770027426930,11.74739054,103.12,103.07,48.94674644]
[1770027427330,58.8214671,103.12,103.07,48.94674644]
[1770027427529,3.01029054,103.11,103.07,48.94674644]
[1770027427734,58.8214671,103.12,103.07,48.94674644]
[1770027428940,3.01029054,103.13,103.07,48.94674644]
[1770027429138,49.99870107,103.13,103.07,48.94674644]
[1770027429340,58.73500107,103.13,103.07,48.94674644]
[1770027429539,3.01029054,103.12,103.07,48.94674644]
[1770027431939,55.72471053,103.13,103.07,57.68794644]
[1770027432243,8.7371,103.12,103.07,48.94674644]
[1770027434742,58.73490107,103.13,103.07,48.94674644]
[1770027437444,55.72541053,103.12,103.07,48.94674644]
[1770027439252,55.72541053,103.12,103.04,58.86666388]
[1770027439253,49.99870107,103.11,103.04,58.86666388]
[1770027439652,46.98841053,103.11,103.06,47.11257334]
[1770027439851,46.98841053,103.11,103.06,50.12286388]
[1770027440352,46.98841053,103.11,103.06,50.12383398]
[1770027441456,46.98841053,103.11,103.06,58.86583398]
[1770027441954,8.737,103.12,103.06,58.86583398]
[1770027442153,55.72541053,103.12,103.06,58.86583398]
[1770027442347,58.73667117,103.12,103.06,47.11257334]
[1770027444149,55.72541053,103.12,103.06,58.86563398]
[1770027444352,55.72541053,103.12,103.07,50.12383398]
[1770027444551,55.72541053,103.12,103.07,47.11257334]
[1770027444949,58.73667117,103.12,103.06,55.85437334]
[1770027445252,55.72621053,103.11,103.06,47.11257334]
[1770027445450,58.73747117,103.11,103.06,47.11257334]
[1770027446756,55.72621053,103.11,103.06,47.11257334]
[1770027447358,55.72711053,103.1,103.04,58.86733398]
[1770027447553,135.9635,103.08,103.0,47.11257334]
[1770027447754,49.99967117,103.07,103.01,47.11257334]
[1770027447951,49.99967117,103.05,102.99,47.11257334]
[1770027448151,49.99967117,103.05,102.97,425.4278379]
[1770027448152,183.00151053,103.04,102.97,425.4278379]
[1770027448357,8.7463,103.01,102.95,50.12383398]
[1770027448858,58.74597117,103.01,102.95,47.11257334]
[1770027449058,55.73471053,103.01,102.95,47.11257334]
[1770027449654,55.73471053,103.01,102.92,136.1689]
[1770027449655,46.98841053,102.99,102.92,55.86557334]
[1770027449856,49.99967117,102.99,102.92,58.87683398]
[1770027450250,46.98841053,102.98,102.92,47.11257334]
[1770027450458,49.99967117,102.97,102.9,58.87853398]
[1770027450657,49.99967117,102.97,102.9,55.86727334]
[1770027451159,46.98841053,102.96,102.9,47.11257334]
[1770027451859,58.75027117,102.96,102.9,47.11257334]
[1770027452556,8.7514,102.95,102.9,47.11257334]
[1770027452861,11.76266064,102.95,102.9,47.11257334]
[1770027453255,3.01126064,102.93,102.88,47.11257334]
[1770027453462,3.01126064,102.93,102.86,136.2397]
[1770027453463,3.01126064,102.91,102.86,47.11257334]
[1770027453663,3.01126064,102.9,102.86,47.11257334]
[1770027454363,199.47941303,102.92,102.86,47.11257334]
[1770027454662,63.30501303,102.92,102.86,47.11257334]
[1770027455259,46.98841053,102.91,102.83,55.87337334]
[1770027455459,55.74341053,102.91,102.83,47.11257334]
[1770027455659,55.74341053,102.91,102.8,47.11257334]
[1770027455660,46.98841053,102.88,102.8,47.11257334]
[1770027455963,46.98841053,102.87,102.8,47.11257334]
[1770027457367,7.5625025,102.86,102.8,47.11257334]
[1770027458563,144.9817,102.88,102.72,8.7707]
[1770027458564,45.67912065,102.81,102.72,8.7707]
[1770027458863,7.5625025,102.82,102.74,46.2892832]
[1770027459262,189.54552315,102.82,102.74,46.2892832]
[1770027459661,189.54632315,102.82,102.74,46.2892832]
[1770027459864,198.30902315,102.82,102.74,46.2892832]
[1770027460164,189.54632315,102.82,102.74,46.2892832]
[1770027460459,190.76132065,102.81,102.74,46.2892832]
[1770027460665,7.5625025,102.8,102.74,46.2892832]
[1770027460864,54.44262065,102.81,102.74,46.2892832]
[1770027461464,45.67912065,102.81,102.74,46.2892832]
[1770027464164,413.8111,102.83,102.74,46.2892832]
[1770027464165,45.67912065,102.86,102.77,46.2892832]
[1770027464370,7.5625025,102.85,102.78,46.2892832]
[1770027465266,7.5625025,102.85,102.78,55.0546832]
[1770027465673,7.5625025,102.87,102.8,46.2892832]
[1770027465869,7.5625025,102.83,102.78,46.2892832]
[1770027466073,7.5625025,102.85,102.78,46.2892832]
[1770027467476,53.24162315,102.87,102.79,46.2892832]
[1770027467867,61.99982315,102.87,102.79,55.0538832]
[1770027468166,7.5625025,102.87,102.8,47.12144404]
[1770027469263,63.64219921,102.89,102.82,47.12144404]
[1770027470876,47.32279671,102.88,102.82,47.12144404]
[1770027471375,7.5625025,102.89,102.82,55.88364404]
[1770027471670,54.88529921,102.89,102.82,47.12144404]
[1770027472872,136.1846,102.91,102.82,47.12144404]
[1770027472873,47.32279671,102.91,102.83,47.12144404]
[1770027473071,54.88529921,102.91,102.83,47.12144404]
[1770027473475,63.64029921,102.91,102.83,47.12144404]
[1770027474273,63.64029921,102.91,102.84,8.7605]
[1770027474577,56.07859671,102.9,102.84,47.12144404]
[1770027474773,54.88529921,102.89,102.82,47.12144404]
[1770027475077,54.88529921,102.89,102.82,55.88324404]
[1770027475475,47.32279671,102.89,102.82,47.12144404]
[1770027475777,88.4358,102.9,102.82,47.12144404]
[1770027475973,79.68,102.9,102.84,47.12144404]
[1770027477177,79.68,102.9,102.84,55.88194404]
[1770027479969,127.00279671,102.9,102.84,47.12144404]
[1770027480172,47.32279671,102.89,102.84,47.12144404]
[1770027480579,54.88529921,102.89,102.82,47.12144404]
[1770027480978,54.88529921,102.87,102.8,47.12144404]
[1770027481183,47.32279671,102.86,102.8,47.12144404]
[1770027481380,7.5625025,102.87,102.8,47.12144404]
[1770027482179,183.54779671,102.88,102.81,55.88444404]
[1770027482180,47.32279671,102.88,102.81,55.88444404]
[1770027483278,56.08009671,102.88,102.81,55.88444404]
[1770027483980,47.32279671,102.88,102.81,47.12144404]
[1770027484183,183.55109671,102.88,102.81,47.12144404]
[1770027484381,47.32279671,102.88,102.81,55.88444404]
[1770027485378,8.7581,102.87,102.81,55.88444404]
[1770027485684,7.5625025,102.89,102.82,55.88354404]
[1770027485979,8.7571,102.89,102.82,47.12144404]
[1770027486581,8.7571,102.89,102.83,55.88274404]
[1770027487181,8.7571,102.89,102.83,47.12144404]
[1770027487386,8.7572,102.88,102.83,47.12144404]
[1770027488283,63.64169921,102.89,102.83,47.12144404]
[1770027488684,63.64169921,102.89,102.83,55.88284404]
[1770027488885,63.64169921,102.89,102.83,47.12144404]
[1770027489086,55.22062955,102.87,102.8,53.77458202]
[1770027489887,8.7589,102.86,102.8,45.01058202]
[1770027490483,8.7589,102.86,102.8,53.77458202]
[1770027490680,56.41812705,102.85,102.8,45.01058202]
[1770027490883,56.41812705,102.85,102.77,45.01058202]
[1770027491085,136.13812705,102.85,102.79,45.01058202]
[1770027491280,7.5625025,102.89,102.81,18.34743276]
[1770027491487,47.65812705,102.91,102.83,14.00990817]
[1770027491682,47.65812705,102.91,102.84,8.7598]
[1770027491990,47.65812705,102.89,102.83,14.00990817]
[1770027492288,47.65812705,102.89,102.81,226.28]
[1770027492289,47.65812705,102.88,102.81,240.39946813]
[1770027492487,191.44822955,102.88,102.81,240.39946813]
[1770027492684,7.5625025,102.84,102.76,14.11946813]
[1770027492991,55.22062955,102.84,102.76,14.11946813]
[1770027493184,63.98122955,102.84,102.77,22.88546224]
[1770027493387,63.98122955,102.84,102.78,14.11926224]
[1770027494089,8.7616,102.83,102.78,14.11926224]
[1770027496488,87.2925025,102.84,102.78,14.11926224]
[1770027496688,79.73,102.84,102.78,14.11926224]
[1770027496895,88.4907,102.84,102.78,22.88486224]
[1770027497582,79.73,102.84,102.79,12.37923569]
[1770027498285,79.73,102.84,102.79,21.14403569]
[1770027498491,79.73,102.84,102.8,12.23308564]
[1770027498881,79.73,102.84,102.8,20.99688564]
[1770027499890,65.135,102.84,102.81,20.533032]
[1770027500092,50.0722,102.84,102.81,20.533032]
[1770027503797,60.95383656,102.9,102.82,136.3026]
[1770027503997,60.95383656,102.9,102.83,136.2836]
[1770027504901,136.1414,102.95,102.87,136.2352]
[1770027504902,7.56960343,102.95,102.87,136.2352]
[1770027505105,60.82602538,102.96,102.87,136.2352]
[1770027505506,60.82602538,102.96,102.87,8.7572]
[1770027505900,60.82602538,102.96,102.86,524.2697]
[1770027507104,78.36549739,102.95,102.86,524.2697]
[1770027507305,87.11689739,102.95,102.87,136.2363]
[1770027507705,78.36549739,102.95,102.88,136.2219]
[1770027508306,78.36549739,102.95,102.89,8.7563]
[1770027510007,61.06247177,102.94,102.86,524.2697]
[1770027511099,61.06247177,102.94,102.87,8.758]
[1770027511605,69.8163104,102.92,102.83,159.97029399]
[1770027511799,69.8163104,102.92,102.82,136.2922]
[1770027511800,61.0624104,102.9,102.81,136.3071]
[1770027512001,68.83184209,102.89,102.8,136.3212]
[1770027512198,68.83184209,102.89,102.79,524.2218]
[1770027512403,61.26223866,102.88,102.81,8.7631]
[1770027512703,61.26223866,102.88,102.79,524.2018]
[1770027514410,8.758,102.87,102.8,8.7638]
[1770027514914,61.26223866,102.88,102.81,8.7631]
[1770027516310,70.01963866,102.88,102.81,8.7631]
[1770027518513,61.26223866,102.88,102.82,8.7621]
[1770027520116,70.01943866,102.88,102.82,8.7621]
[1770027523210,60.6321859,102.86,102.81,8.7631]
[1770027523515,60.6321859,102.88,102.81,136.3142]
[1770027525217,69.50141726,102.9,102.82,136.303]
[1770027525919,69.50141726,102.9,102.82,524.243]
[1770027526316,69.50141726,102.9,102.84,8.7604]
[1770027530210,60.74581726,102.9,102.85,8.7596]
[1770027531118,69.50131726,102.9,102.85,8.7596]
[1770027532324,60.74581726,102.9,102.85,8.7596]
[1770027533923,60.74581726,102.9,102.86,8.7586]
[1770027534128,60.39631667,102.92,102.86,8.7586]
[1770027535423,60.39631667,102.92,102.87,8.7579]
[1770027537329,60.39631667,102.92,102.85,8.759]
[1770027537831,60.39631667,102.92,102.84,524.1951]
[1770027538228,67.9659201,102.92,102.84,387.92]
[1770027539324,67.9659201,102.92,102.85,8.7597]
[1770027539325,69.31178362,102.91,102.85,8.7597]
[1770027540329,69.40580141,102.9,102.84,387.92]
[1770027540530,69.40580141,102.9,102.83,8.7607]
[1770027541132,69.40580141,102.9,102.76,406.02852454]
[1770027541133,136.2939,102.83,102.76,23.97147788]
[1770027541323,7.56960343,102.81,102.74,59.04532829]
[1770027541528,7.56960343,102.82,102.74,59.04532829]
[1770027541831,136.2903,102.83,102.74,59.04532829]
[1770027542029,143.85990343,102.83,102.74,59.04532829]
[1770027542528,136.3043,102.82,102.74,59.04532829]
[1770027543033,152.62140343,102.83,102.74,59.04532829]
[1770027543237,165.4484,102.87,102.77,59.84310085]
[1770027543238,143.81800343,102.87,102.77,59.84310085]
[1770027543424,136.2484,102.87,102.77,59.84310085]
[1770027543629,152.54820343,102.89,102.79,59.84310085]
[1770027543832,144.9786,102.89,102.81,59.84310085]
[1770027544226,144.939,102.91,102.82,59.97872063]
[1770027545234,143.75020343,102.92,102.83,59.97873051]
[1770027545235,136.1806,102.92,102.83,59.97873051]
[1770027545834,144.9192,102.93,102.84,59.9569609]
[1770027546036,136.1558,102.94,102.85,59.9569609]
[1770027546331,306.8214,102.95,102.85,59.9569609]
[1770027546332,442.9527,102.95,102.85,59.9569609]
[1770027547633,162.2127,102.95,102.85,59.9569609]
[1770027548027,144.8827,102.95,102.85,59.9569609]
[1770027550241,144.8974,102.94,102.85,59.9569609]
[1770027550437,136.2048,102.9,102.8,68.43379964]
[1770027550735,7.56960343,102.88,102.8,68.43379964]
[1770027551041,323.42060343,102.92,102.82,68.43258265]
[1770027551243,187.24960343,102.92,102.83,59.67068265]
[1770027551540,7.56960343,102.92,102.84,59.67068265]
[1770027551736,17.3,102.91,102.84,59.67068265]
[1770027552137,17.3,102.91,102.84,68.43068265]
[1770027552339,17.3,102.91,102.85,59.51821784]
[1770027555341,26.0551,102.91,102.85,59.51821784]
[1770027555540,26.0551,102.91,102.82,8.7617]
[1770027555541,26.0551,102.91,102.83,59.80976034]
[1770027555742,4.39993365,102.9,102.83,59.80976034]
[1770027555935,153.4866,102.91,102.83,59.80976034]
[1770027556141,20.72537384,102.9,102.83,59.80976034]
[1770027556441,4.40085219,102.89,102.83,59.80976034]
[1770027556640,16.32540343,102.9,102.83,59.80976034]
[1770027557139,4.4011941,102.89,102.83,59.80976034]
[1770027557342,7.56960343,102.9,102.83,59.80976034]
[1770027557542,4.40089398,102.89,102.83,59.80976034]
[1770027557743,7.56960343,102.9,102.83,59.80976034]
[1770027558243,7.56960343,102.9,102.83,68.57096034]
[1770027558446,17.3,102.91,102.84,59.62606238]
[1770027560348,17.3,102.91,102.84,68.38656238]
[1770027560848,4.40196456,102.9,102.84,68.38656238]
[1770027561146,17.3,102.91,102.84,68.38656238]
[1770027561342,4.40251073,102.9,102.84,68.38656238]
[1770027561539,17.3,102.91,102.84,68.38656238]
[1770027561746,4.40251073,102.9,102.84,68.38656238]
[1770027561942,17.3,102.91,102.84,68.38656238]
[1770027562146,4.40251073,102.9,102.84,68.38656238]
[1770027562346,17.3,102.91,102.84,68.38656238]
[1770027562546,4.40277668,102.9,102.84,68.38656238]
[1770027562747,17.3,102.91,102.84,68.38656238]
[1770027562950,4.40277709,102.9,102.84,68.38656238]
[1770027563152,17.3,102.91,102.84,68.38656238]
[1770027563348,4.40307103,102.9,102.84,68.38656238]
[1770027563646,26.0547,102.91,102.84,68.38656238]
[1770027563847,4.40307103,102.9,102.84,68.38656238]
[1770027564146,4.40307103,102.89,102.84,68.38656238]
[1770027564350,24.86248004,102.91,102.84,68.38656238]
[1770027564548,4.40335934,102.9,102.84,68.38656238]
[1770027564749,4.40335934,102.89,102.84,68.38656238]
[1770027564951,24.86248004,102.91,102.84,68.38656238]
[1770027565250,4.40335934,102.9,102.84,68.38656238]
[1770027565450,4.40335934,102.89,102.84,59.62606238]
[1770027565649,8.7556,102.9,102.84,59.62606238]
[1770027565851,4.40358857,102.89,102.84,59.62606238]
[1770027566051,8.7556,102.9,102.84,59.62606238]
[1770027566350,4.40358857,102.89,102.84,59.62606238]
[1770027566550,8.7556,102.9,102.84,59.62606238]
[1770027566746,4.40381016,102.89,102.84,59.62606238]
[1770027566950,8.7556,102.9,102.84,59.62606238]
[1770027567144,4.40381016,102.89,102.84,59.62606238]
[1770027567345,8.7556,102.9,102.84,59.62606238]
[1770027567543,4.40404035,102.89,102.84,59.62606238]
[1770027567744,8.7556,102.9,102.84,59.62606238]
[1770027567950,4.40404035,102.89,102.84,59.62606238]
[1770027568151,8.7556,102.9,102.84,59.62606238]
[1770027568351,4.40469347,102.89,102.84,59.62606238]
[1770027568554,8.7556,102.9,102.84,59.62606238]
[1770027568750,4.40469347,102.89,102.84,59.62606238]
[1770027568954,8.7556,102.9,102.84,59.62606238]
[1770027569158,4.40469347,102.89,102.84,59.62606238]
[1770027569453,8.7556,102.9,102.84,59.62606238]
[1770027569648,4.40475784,102.89,102.84,59.62606238]
[1770027569846,8.7556,102.9,102.84,59.62606238]
[1770027570048,4.40475784,102.89,102.84,59.62606238]
[1770027570255,8.7556,102.9,102.84,59.62606238]
[1770027570450,4.40477389,102.89,102.84,59.62606238]
[1770027570653,4.40488508,102.88,102.82,59.16431198]
[1770027570954,4.40495714,102.87,102.82,59.16431198]
[1770027571156,4.40495714,102.86,102.82,59.16431198]
[1770027571452,7.56248004,102.89,102.82,59.16431198]
[1770027572553,16.31958004,102.89,102.82,67.92661198]
[1770027573452,17.28,102.88,102.82,67.92661198]
[1770027574157,26.0373,102.88,102.82,67.92661198]
[1770027574557,17.28,102.88,102.82,67.92661198]
[1770027576358,143.73548004,102.92,102.84,59.22926918]
[1770027576653,7.56248004,102.92,102.84,59.22926918]
[1770027576850,136.1417,102.95,102.86,50.58982036]
[1770027577049,143.70418004,102.95,102.86,50.58982036]
[1770027578463,8.753,102.93,102.86,59.34862036]
[1770027579958,8.753,102.93,102.87,8.7578]
[1770027580163,8.753,102.93,102.87,59.25059659]
[1770027580462,8.753,102.93,102.87,50.49279659]
[1770027581461,143.70418004,102.95,102.87,59.25079659]
[1770027581765,143.66928004,102.97,102.89,50.49351507]
[1770027582166,8.7512,102.95,102.89,50.49351507]
[1770027584771,143.66928004,102.97,102.89,50.49351507]
[1770027584772,8.7521,102.94,102.89,50.49351507]
[1770027585470,8.7515,102.95,102.89,59.24971507]
[1770027585771,8.7515,102.95,102.89,50.49351507]
[1770027587272,8.7522,102.94,102.89,50.49351507]
[1770027588973,8.7512,102.95,102.89,50.49351507]
[1770027590576,8.7512,102.95,102.89,59.24971507]
[1770027593882,8.7521,102.94,102.89,50.49351507]
[1770027594872,143.69738004,102.95,102.87,438.69416825]
[1770027595073,136.1454,102.94,102.87,438.69416825]
[1770027595275,136.1454,102.94,102.87,50.91416825]
[1770027595485,8.7539,102.92,102.87,50.91416825]
[1770027596183,136.1606,102.93,102.87,50.91416825]
[1770027596382,143.72308004,102.93,102.87,50.91416825]
[1770027597285,8.7548,102.91,102.87,50.91416825]
[1770027598283,8.7539,102.92,102.87,50.91416825]
[1770027598881,8.7526,102.94,102.87,50.91416825]
[1770027600184,8.7526,102.94,102.87,59.67216825]
[1770027600388,7.56248004,102.99,102.9,51.42674838]
[1770027600678,7.56248004,102.99,102.93,51.42674838]
[1770027600886,143.62508004,103.01,102.93,51.42674838]
[1770027601187,143.59888004,103.03,102.93,51.42674838]
[1770027601385,7.56248004,103.03,102.94,51.42673099]
[1770027601685,8.7422,103.06,102.98,60.17483099]
[1770027602187,143.56208004,103.05,102.98,51.42673099]
[1770027602386,8.7438,103.04,102.98,51.42673099]
[1770027602886,8.7426,103.06,102.98,51.42673099]
[1770027603288,143.53548004,103.07,102.98,51.42673099]
[1770027603490,152.27718004,103.07,102.98,60.17523099]
[1770027603984,143.53548004,103.07,102.98,60.17523099]
[1770027604284,8.7429,103.05,102.98,51.42673099]
[1770027604886,8.7439,103.04,102.98,51.42673099]
[1770027607988,8.7447,103.03,102.98,51.42673099]
[1770027608385,8.7457,103.02,102.96,51.72532954]
[1770027608590,143.56248004,103.05,102.96,51.72532954]
[1770027608992,143.53548004,103.07,102.98,51.72532954]
[1770027609395,8.7431,103.05,102.98,51.72532954]
[1770027610189,8.7431,103.05,102.98,60.47392954]
[1770027610789,8.7411,103.07,103.0,8.7469]
[1770027610992,8.7411,103.07,103.01,51.47622369]
[1770027611588,144.6964,103.09,103.01,51.47622369]
[1770027611795,8.7401,103.09,103.02,51.47622369]
[1770027611994,143.48788004,103.11,103.02,51.47622369]
[1770027612290,8.7394,103.09,103.02,51.47622369]
[1770027612685,8.7394,103.09,103.02,60.22142369]
[1770027615498,8.7394,103.09,103.02,51.47622369]
[1770027615700,8.7394,103.09,103.0,479.8291]
[1770027615701,135.9596,103.08,103.0,60.95753142]
[1770027615999,143.53568004,103.07,103.0,52.21123142]
[1770027616198,135.9524,103.09,103.0,52.21123142]
[1770027617301,8.7403,103.08,103.0,60.95803142]
[1770027617489,143.52408004,103.08,103.0,52.21123142]
[1770027617696,135.9735,103.07,103.0,52.21123142]
[1770027617990,8.7422,103.06,103.0,52.21123142]
[1770027619897,8.7422,103.06,103.0,60.95813142]
[1770027620094,8.7422,103.06,103.0,52.21123142]
[1770027620707,8.7429,103.05,103.0,52.21123142]
[1770027620904,143.53598004,103.07,103.0,52.21123142]
[1770027621097,8.7422,103.06,103.0,52.21123142]
[1770027621998,8.7429,103.05,103.0,52.21123142]
[1770027623101,143.54595018,103.05,102.98,52.21554393]
[1770027623304,143.56935018,103.03,102.94,52.21554393]
[1770027623600,143.59455018,103.01,102.94,52.21554393]
[1770027624101,136.0269,103.03,102.94,52.21554393]
[1770027624102,7.54245018,103.03,102.95,52.79368842]
[1770027625298,8.7454,103.02,102.95,61.54468842]
[1770027625999,8.7454,103.02,102.89,136.2011]
[1770027626000,7.54245018,103.01,102.89,52.9541883]
[1770027626200,136.1184,102.96,102.89,52.9541883]
[1770027626399,8.7509,102.96,102.89,52.9541883]
[1770027626605,143.64735018,102.97,102.89,52.9541883]
[1770027627202,143.63255018,102.99,102.9,52.95359964]
[1770027627597,7.54245018,102.99,102.9,52.95359964]
[1770027627801,143.60455018,103.01,102.91,52.95359964]
[1770027628305,136.0666,103.0,102.91,52.95359964]
[1770027629301,8.7474,103.0,102.91,52.95359964]
[1770027629504,136.0233,103.04,102.95,51.76219424]
[1770027629710,143.55085018,103.05,102.95,51.76219424]
[1770027629711,7.54245018,103.05,102.97,51.76219424]
[1770027631008,16.28555018,103.05,102.97,51.76219424]
[1770027631802,8.7431,103.05,102.97,51.76219424]
[1770027632010,144.7446,103.05,102.97,51.76219424]
[1770027634014,144.7446,103.05,102.96,8.7498]
[1770027634015,143.59595018,103.01,102.92,58.87603133]
[1770027634215,136.0417,103.02,102.92,58.87603133]
[1770027634216,7.54245018,103.02,102.93,50.12273133]
[1770027634412,16.28675018,103.04,102.95,50.12273133]
[1770027634609,16.28675018,103.04,102.96,50.12273133]
[1770027634915,143.55575018,103.04,102.96,50.12273133]
[1770027635111,8.7455,103.02,102.96,50.12273133]
[1770027635314,136.0,103.05,102.96,50.12273133]
[1770027635713,8.7443,103.04,102.96,58.87293133]
[1770027636309,8.7446,103.03,102.96,50.12273133]
[1770027636915,136.0276,103.03,102.96,50.12273133]
[1770027638322,8.7464,103.01,102.96,50.12273133]
[1770027641214,136.0276,103.03,102.91,49.64978707]
[1770027641413,143.60865018,103.0,102.91,58.40428707]
[1770027641619,136.0544,103.01,102.91,49.64978707]
[1770027641819,143.58235018,103.02,102.92,49.64978707]
[1770027642220,136.0276,103.03,102.94,49.7630334]
[1770027642414,136.0406,103.02,102.94,49.7630334]
[1770027642621,29.2,103.07,102.94,49.7630334]
[1770027642622,135.9826,103.07,102.98,49.7630334]
[1770027642921,8.7421,103.06,102.98,58.5110334]
[1770027644121,8.7429,103.05,102.98,58.5110334]
[1770027646515,8.7429,103.05,102.98,49.7630334]
[1770027648221,136.0557,103.01,102.94,51.46925487]
[1770027648413,143.56905018,103.03,102.94,51.46925487]
[1770027648819,136.0266,103.03,102.94,51.46925487]
[1770027649116,8.7463,103.01,102.94,51.46925487]
[1770027650018,8.7452,103.03,102.94,51.46925487]
[1770027650325,143.55995018,103.04,102.94,51.46925487]
[1770027650822,8.7439,103.04,102.97,50.80328474]
[1770027651413,8.7439,103.04,102.97,59.55258474]
[1770027651819,8.7446,103.03,102.97,50.80328474]
[1770027652223,8.7454,103.02,102.97,50.80328474]
[1770027652717,136.0318,103.03,102.95,50.92501772]
[1770027653220,8.7464,103.01,102.95,50.92501772]
[1770027653820,272.1167,103.01,102.94,316.84]
[1770027654022,272.1167,103.01,102.94,367.65403804]
[1770027655324,8.748,102.99,102.94,367.65403804]
[1770027656027,8.748,102.99,102.94,50.81403804]
[1770027658922,8.747,103.0,102.94,59.56603804]
[1770027659521,8.7462,103.01,102.94,59.56603804]
[1770027660926,8.7472,103.0,102.94,59.56603804]
[1770027661123,136.055,103.01,102.94,50.81403804]
[1770027661328,7.54245018,103.02,102.94,50.81403804]
[1770027661729,136.0318,103.03,102.94,50.81403804]
[1770027661932,8.7471,103.0,102.94,59.56523804]
[1770027662835,8.7471,103.0,102.94,50.81403804]
[1770027663325,8.7471,103.0,102.94,59.56613804]
[1770027663521,136.0318,103.03,102.94,59.56613804]
[1770027663522,8.7462,103.01,102.94,50.81403804]
[1770027665333,8.7462,103.01,102.95,59.50229211]
[1770027666127,136.0107,103.05,102.96,50.71037209]
[1770027666327,143.53715018,103.06,102.97,46.33772209]
[1770027667131,8.7444,103.03,102.97,46.33772209]
[1770027667436,136.0133,103.04,102.97,46.33772209]
[1770027667735,143.55575018,103.04,102.97,46.33772209]
[1770027668332,8.7454,103.02,102.97,46.33772209]
[1770027669628,8.7445,103.03,102.97,46.33772209]
[1770027670430,8.7458,103.02,102.97,46.33772209]
[1770027671232,136.0007,103.05,102.97,55.08722209]
[1770027671730,8.7436,103.04,102.98,8.7486]
[1770027671936,8.7436,103.04,102.98,55.15278584]
[1770027672632,7.54245018,103.06,103.0,46.61709846]
[1770027672830,135.9549,103.09,103.0,46.61709846]
[1770027672831,143.49735018,103.09,103.0,46.61709846]
[1770027673438,8.741,103.08,103.01,55.36289038]
[1770027674438,135.9619,103.08,103.01,46.61719038]
[1770027674939,8.7421,103.06,103.01,46.61719038]
[1770027676640,8.7421,103.06,102.99,55.60412144]
[1770027677037,8.7421,103.06,103.01,46.85635712]
[1770027680642,135.987,103.06,102.99,46.86781133]
[1770027680842,143.54145018,103.05,102.98,387.46]
[1770027681346,143.54145018,103.05,102.98,434.32784303]
[1770027682240,8.7454,103.02,102.98,46.86784303]
[1770027682434,143.54145018,103.05,102.98,46.86784303]
[1770027682846,8.7447,103.03,102.98,46.86784303]
[1770027683147,136.0126,103.04,102.98,46.86784303]
[1770027683837,143.54145018,103.05,102.98,46.86784303]
[1770027684243,7.54245018,103.05,102.98,46.86784303]
[1770027684542,3.01753289,103.03,102.98,46.86784303]
[1770027684847,3.01753289,103.01,102.98,46.86784303]
[1770027685243,11.76383289,103.01,102.95,8.7506]
[1770027685547,3.01753289,102.98,102.93,387.36]
[1770027686047,3.01753289,102.98,102.93,396.1129]
[1770027686436,8.7479,102.99,102.93,396.1129]
[1770027687146,8.7479,102.99,102.94,44.02534306]
[1770027687747,8.7487,102.98,102.94,44.02534306]
[1770027688245,8.7478,103.0,102.94,44.02534306]
[1770027690145,8.7479,102.99,102.94,44.02534306]
[1770027691450,8.7471,103.0,102.94,52.77734306]
[1770027691649,8.7471,103.0,102.94,44.02534306]
[1770027693557,8.7471,103.0,102.94,52.77744306]
[1770027693958,12.88739147,103.01,102.94,44.02534306]
[1770027693959,8.748,102.99,102.94,44.02534306]
[1770027697060,8.7487,102.98,102.94,44.02534306]
[1770027698862,8.7478,102.99,102.94,44.02534306]
[1770027699058,148.46143095,103.02,102.94,44.02534306]
[1770027699059,12.42043095,103.02,102.94,44.02534306]